[Event "*** Titled Tuesday Blitz"]
[Site "Chess.com"]
[Date "2020.04.21"]
[Round "1"]
[White "gahryman"]
[Black "davigator"]
[Result "0-1"]
[WhiteElo "2687"]
[BlackElo "2380"]
[TimeControl "180+1"]
[EndTime "10:06:03 PDT"]
[Termination "davigator won by resignation"]

1. e4 {[%clk 0:03:00.9]} 1... c5 {[%clk 0:02:56.4]} 2. Nf3 {[%clk 0:03:00.8]}
2... Nc6 {[%clk 0:02:55.8]} 3. d4 {[%clk 0:02:59.2]} 3... cxd4 {[%clk
0:02:55.5]} 4. Nxd4 {[%clk 0:03:00.1]} 4... Nf6 {[%clk 0:02:55.5]} 5. Nc3 {[%clk
0:03:00.2]} 5... d6 {[%clk 0:02:55.3]} 6. Bg5 {[%clk 0:02:59.4]} 6... a6 {[%clk
0:02:53.8]} 7. Qd2 {[%clk 0:02:58.4]} 7... e6 {[%clk 0:02:53.3]} 8. O-O-O {[%clk
0:02:57.8]} 8... Bd7 {[%clk 0:02:52.8]} 9. f3 {[%clk 0:02:57.6]} 9... Nxd4
{[%clk 0:02:51.4]} 10. Qxd4 {[%clk 0:02:57.2]} 10... Be7 {[%clk 0:02:51.4]} 11.
h4 {[%clk 0:02:53.6]} 11... b5 {[%clk 0:02:48.6]} 12. Kb1 {[%clk 0:02:51.7]}
12... Qc7 {[%clk 0:02:48]} 13. h5 {[%clk 0:02:45.2]} 13... h6 {[%clk 0:02:46.4]}
14. Be3 {[%clk 0:02:44.7]} 14... Rc8 {[%clk 0:02:45.4]} 15. Qd2 {[%clk
0:02:39.7]} 15... Bc6 {[%clk 0:02:45.5]} 16. g4 {[%clk 0:02:38.1]} 16... Nd7
{[%clk 0:02:45.6]} 17. Ne2 {[%clk 0:02:24.4]} 17... d5 {[%clk 0:02:30]} 18. exd5
{[%clk 0:01:52.4]} 18... Bxd5 {[%clk 0:02:28.7]} 19. Nd4 {[%clk 0:01:52.7]}
19... Bf6 {[%clk 0:02:24.1]} 20. Be2 {[%clk 0:01:48.9]} 20... Ne5 {[%clk
0:02:17.9]} 21. b3 {[%clk 0:01:30.7]} 21... Qb7 {[%clk 0:02:05.6]} 22. Nf5
{[%clk 0:01:21.1]} 22... Qc7 {[%clk 0:01:55.9]} 23. g5 {[%clk 0:01:13.9]} 23...
hxg5 {[%clk 0:01:54.1]} 24. h6 {[%clk 0:01:14.4]} 24... exf5 {[%clk 0:01:42.3]}
25. Qxd5 {[%clk 0:01:12.3]} 25... Qxc2+ {[%clk 0:01:42]} 26. Ka1 {[%clk
0:01:08.7]} 26... Nc6+ {[%clk 0:01:39.1]} 27. Bd4 {[%clk 0:01:07.4]} 27... Bxd4+
{[%clk 0:01:39.5]} 28. Rxd4 {[%clk 0:01:07.2]} 28... Nxd4 {[%clk 0:01:39.4]} 29.
Bxb5+ {[%clk 0:00:39.4]} 29... axb5 {[%clk 0:01:25.2]} 30. Re1+ {[%clk
0:00:38.7]} 30... Kf8 {[%clk 0:01:25]} 31. Qxd4 {[%clk 0:00:02.8]} 31... Qc3+
{[%clk 0:01:21.6]} 0-1

[Event "*** Titled Tuesday Blitz"]
[Site "Chess.com"]
[Date "2020.04.21"]
[Round "1"]
[White "RaphaeI"]
[Black "Filip_Covic"]
[Result "1-0"]
[WhiteElo "2634"]
[BlackElo "2307"]
[TimeControl "180+1"]
[EndTime "10:06:09 PDT"]
[Termination "RaphaeI won by resignation"]

1. Nf3 {[%clk 0:03:00.9]} 1... Nf6 {[%clk 0:02:59.7]} 2. c4 {[%clk 0:03:00.7]}
2... e6 {[%clk 0:02:59]} 3. Nc3 {[%clk 0:03:00.5]} 3... Bb4 {[%clk 0:02:58.5]}
4. Qc2 {[%clk 0:03:00.3]} 4... O-O {[%clk 0:02:57.7]} 5. a3 {[%clk 0:03:00.8]}
5... Bxc3 {[%clk 0:02:57.3]} 6. Qxc3 {[%clk 0:03:01.7]} 6... b6 {[%clk
0:02:57.3]} 7. e3 {[%clk 0:02:58.1]} 7... Bb7 {[%clk 0:02:57.6]} 8. b4 {[%clk
0:02:54.9]} 8... a5 {[%clk 0:02:56.5]} 9. Bb2 {[%clk 0:02:53.7]} 9... d6 {[%clk
0:02:56.4]} 10. Be2 {[%clk 0:02:53.3]} 10... Nbd7 {[%clk 0:02:54.6]} 11. O-O
{[%clk 0:02:53.4]} 11... Qe7 {[%clk 0:02:53.6]} 12. d4 {[%clk 0:02:48.9]} 12...
Ne4 {[%clk 0:02:48.9]} 13. Qb3 {[%clk 0:02:36.2]} 13... f5 {[%clk 0:02:33.1]}
14. d5 {[%clk 0:02:34]} 14... e5 {[%clk 0:02:22.8]} 15. Qc2 {[%clk 0:02:21.6]}
15... Ng5 {[%clk 0:01:51.5]} 16. Nxg5 {[%clk 0:02:08.1]} 16... Qxg5 {[%clk
0:01:50.3]} 17. f4 {[%clk 0:02:09]} 17... exf4 {[%clk 0:01:30.1]} 18. exf4
{[%clk 0:02:08.4]} 18... Qh6 {[%clk 0:01:11.6]} 19. Bd3 {[%clk 0:02:03.4]} 19...
axb4 {[%clk 0:01:04]} 20. axb4 {[%clk 0:02:01]} 20... Rxa1 {[%clk 0:01:04.5]}
21. Bxa1 {[%clk 0:02:01.9]} 21... Qh5 {[%clk 0:00:40.6]} 22. Re1 {[%clk
0:01:57.6]} 22... Re8 {[%clk 0:00:36.8]} 23. Qc3 {[%clk 0:01:11.6]} 23... Rxe1+
{[%clk 0:00:09.4]} 24. Qxe1 {[%clk 0:01:12.5]} 24... Qf7 {[%clk 0:00:07.9]} 25.
Qh4 {[%clk 0:01:05.6]} 25... Nf6 {[%clk 0:00:02.9]} 26. Bxf5 {[%clk 0:01:03.2]}
26... b5 {[%clk 0:00:01.6]} 27. Be6 {[%clk 0:01:03.3]} 1-0

[Event "*** Titled Tuesday Blitz"]
[Site "Chess.com"]
[Date "2020.04.21"]
[Round "1"]
[White "ChessWarrior7197"]
[Black "letsgoband"]
[Result "1-0"]
[WhiteElo "2879"]
[BlackElo "2453"]
[TimeControl "180+1"]
[EndTime "10:06:10 PDT"]
[Termination "ChessWarrior7197 won by resignation"]

1. e4 {[%clk 0:03:00.9]} 1... e6 {[%clk 0:02:58.4]} 2. d4 {[%clk 0:03:00.5]}
2... d5 {[%clk 0:02:58.2]} 3. Nc3 {[%clk 0:03:01.1]} 3... Bb4 {[%clk 0:02:54.3]}
4. Ne2 {[%clk 0:02:59]} 4... b6 {[%clk 0:02:45.4]} 5. a3 {[%clk 0:02:57.8]} 5...
Be7 {[%clk 0:02:44.3]} 6. exd5 {[%clk 0:02:55.8]} 6... exd5 {[%clk 0:02:44.4]}
7. Ng3 {[%clk 0:02:50.7]} 7... Nf6 {[%clk 0:02:38.6]} 8. Bf4 {[%clk 0:02:45.1]}
8... O-O {[%clk 0:02:37.1]} 9. Qd2 {[%clk 0:02:44.8]} 9... Re8 {[%clk
0:02:33.5]} 10. O-O-O {[%clk 0:02:44.5]} 10... c6 {[%clk 0:02:21.1]} 11. Bd3
{[%clk 0:02:43.1]} 11... Ba6 {[%clk 0:02:21.2]} 12. Nf5 {[%clk 0:02:39.9]} 12...
Bf8 {[%clk 0:02:18.9]} 13. g4 {[%clk 0:02:37.6]} 13... Bxd3 {[%clk 0:02:18.3]}
14. Qxd3 {[%clk 0:02:36.8]} 14... Nbd7 {[%clk 0:02:02.5]} 15. f3 {[%clk
0:02:31.9]} 15... Re6 {[%clk 0:01:51.8]} 16. h4 {[%clk 0:02:28.8]} 16... b5
{[%clk 0:01:37]} 17. h5 {[%clk 0:02:19.7]} 17... Qa5 {[%clk 0:01:10.8]} 18. g5
{[%clk 0:02:17.5]} 18... Bxa3 {[%clk 0:00:54.3]} 19. gxf6 {[%clk 0:02:17]} 19...
Nb6 {[%clk 0:00:44.9]} 20. Nb1 {[%clk 0:01:22.4]} 20... Bxb2+ {[%clk 0:00:34.6]}
21. Kxb2 {[%clk 0:01:23.3]} 21... Nc4+ {[%clk 0:00:34.6]} 22. Kc1 {[%clk
0:01:23.5]} 22... Rxf6 {[%clk 0:00:33]} 23. Rdg1 {[%clk 0:01:21.2]} 23... Re8
{[%clk 0:00:19.2]} 24. Rxg7+ {[%clk 0:01:16.6]} 24... Kh8 {[%clk 0:00:19.4]} 25.
Be5 {[%clk 0:01:09.5]} 25... Nxe5 {[%clk 0:00:16.5]} 26. dxe5 {[%clk 0:01:10.4]}
26... Rxf5 {[%clk 0:00:16.8]} 27. Qxf5 {[%clk 0:01:09.5]} 27... Kxg7 {[%clk
0:00:17.2]} 28. h6+ {[%clk 0:01:06.9]} 28... Kf8 {[%clk 0:00:17.1]} 29. Qxh7
{[%clk 0:01:07]} 29... Rxe5 {[%clk 0:00:16.9]} 30. Qh8+ {[%clk 0:01:07.2]} 30...
Ke7 {[%clk 0:00:17.1]} 31. Qxe5+ {[%clk 0:01:08.1]} 1-0

[Event "*** Titled Tuesday Blitz"]
[Site "Chess.com"]
[Date "2020.04.21"]
[Round "1"]
[White "narutosmith"]
[Black "nocnypako"]
[Result "1/2-1/2"]
[WhiteElo "2250"]
[BlackElo "2586"]
[TimeControl "180+1"]
[EndTime "10:06:11 PDT"]
[Termination "Game drawn - insufficient material"]

1. c4 {[%clk 0:03:00.9]} 1... Nf6 {[%clk 0:02:59.8]} 2. Nc3 {[%clk 0:03:00.8]}
2... d5 {[%clk 0:03:00.3]} 3. cxd5 {[%clk 0:02:59.8]} 3... Nxd5 {[%clk
0:03:01.2]} 4. g3 {[%clk 0:02:55.3]} 4... g6 {[%clk 0:03:01.6]} 5. Bg2 {[%clk
0:02:55.7]} 5... Nb6 {[%clk 0:03:02.2]} 6. d3 {[%clk 0:02:52.6]} 6... Bg7 {[%clk
0:03:02.6]} 7. Nf3 {[%clk 0:02:52.8]} 7... Nc6 {[%clk 0:03:03.2]} 8. Be3 {[%clk
0:02:50.5]} 8... Nd4 {[%clk 0:03:03.3]} 9. Qd2 {[%clk 0:02:46.7]} 9... O-O
{[%clk 0:03:03.1]} 10. O-O {[%clk 0:02:44.9]} 10... Nf5 {[%clk 0:03:02.3]} 11.
Bf4 {[%clk 0:02:42.8]} 11... Re8 {[%clk 0:03:01.2]} 12. Rac1 {[%clk 0:02:35.6]}
12... e5 {[%clk 0:03:00.5]} 13. Bg5 {[%clk 0:02:34.3]} 13... f6 {[%clk
0:03:00.6]} 14. Be3 {[%clk 0:02:31.9]} 14... Nxe3 {[%clk 0:03:00.8]} 15. Qxe3
{[%clk 0:02:30.9]} 15... c6 {[%clk 0:03:01.5]} 16. b4 {[%clk 0:02:25]} 16... Be6
{[%clk 0:02:58.2]} 17. b5 {[%clk 0:02:23.7]} 17... Nd5 {[%clk 0:02:56.9]} 18.
Qd2 {[%clk 0:02:00.8]} 18... Nxc3 {[%clk 0:02:55.5]} 19. Qxc3 {[%clk 0:01:58.5]}
19... cxb5 {[%clk 0:02:56.1]} 20. Qb2 {[%clk 0:01:50.6]} 20... a6 {[%clk
0:02:54.4]} 21. Rc2 {[%clk 0:01:47.4]} 21... Qd7 {[%clk 0:02:53.6]} 22. Rfc1
{[%clk 0:01:46.3]} 22... Rac8 {[%clk 0:02:53.8]} 23. Nd2 {[%clk 0:01:45.3]}
23... Rxc2 {[%clk 0:02:49]} 24. Qxc2 {[%clk 0:01:44.7]} 24... Rc8 {[%clk
0:02:48.6]} 25. Qxc8+ {[%clk 0:01:38.4]} 25... Qxc8 {[%clk 0:02:49.5]} 26. Rxc8+
{[%clk 0:01:38]} 26... Bxc8 {[%clk 0:02:50.1]} 27. Ne4 {[%clk 0:01:38.3]} 27...
b4 {[%clk 0:02:39.5]} 28. Nd6 {[%clk 0:01:29.5]} 28... Be6 {[%clk 0:02:39.5]}
29. Bxb7 {[%clk 0:01:23.9]} 29... a5 {[%clk 0:02:31.1]} 30. Nc4 {[%clk
0:01:20.7]} 30... a4 {[%clk 0:02:27.8]} 31. Kf1 {[%clk 0:01:11.5]} 31... Bxc4
{[%clk 0:02:21.5]} 32. dxc4 {[%clk 0:01:10]} 32... b3 {[%clk 0:02:22.1]} 33. c5
{[%clk 0:00:55.3]} 33... Kf8 {[%clk 0:02:21]} 34. Bd5 {[%clk 0:00:43.3]} 34...
b2 {[%clk 0:02:17.9]} 35. Be4 {[%clk 0:00:42.2]} 35... f5 {[%clk 0:02:18]} 36.
Bc2 {[%clk 0:00:39.5]} 36... e4 {[%clk 0:02:18.2]} 37. e3 {[%clk 0:00:35.1]}
37... Bc3 {[%clk 0:02:15.2]} 38. Ke2 {[%clk 0:00:35.1]} 38... Ke7 {[%clk
0:02:14.1]} 39. a3 {[%clk 0:00:35.4]} 39... Ke6 {[%clk 0:02:06.9]} 40. c6 {[%clk
0:00:32.2]} 40... Kd6 {[%clk 0:02:06.9]} 41. f3 {[%clk 0:00:31.3]} 41... exf3+
{[%clk 0:02:04]} 42. Kxf3 {[%clk 0:00:31.2]} 42... Kxc6 {[%clk 0:02:00]} 43.
Bxa4+ {[%clk 0:00:30.8]} 43... Kc5 {[%clk 0:02:00.2]} 44. Bc2 {[%clk 0:00:30.7]}
44... Kc4 {[%clk 0:01:58.2]} 45. g4 {[%clk 0:00:28.6]} 45... fxg4+ {[%clk
0:01:55.2]} 46. Kxg4 {[%clk 0:00:28.8]} 46... Be5 {[%clk 0:01:53.5]} 47. h4
{[%clk 0:00:28.1]} 47... Kc3 {[%clk 0:01:52]} 48. Bb1 {[%clk 0:00:24.5]} 48...
Kd2 {[%clk 0:01:49.4]} 49. h5 {[%clk 0:00:23.4]} 49... gxh5+ {[%clk 0:01:49.2]}
50. Kxh5 {[%clk 0:00:23.1]} 50... Kxe3 {[%clk 0:01:48.6]} 51. Bxh7 {[%clk
0:00:21.9]} 51... Kd2 {[%clk 0:01:48.7]} 52. a4 {[%clk 0:00:21]} 52... Bc7
{[%clk 0:01:47.9]} 53. Bb1 {[%clk 0:00:19]} 53... Kc1 {[%clk 0:01:48.8]} 54. Bg6
{[%clk 0:00:18.9]} 54... b1=Q {[%clk 0:01:48.8]} 55. Bxb1 {[%clk 0:00:18.7]}
55... Kxb1 {[%clk 0:01:49.7]} 56. a5 {[%clk 0:00:19.2]} 56... Bxa5 {[%clk
0:01:48.8]} 1/2-1/2

[Event "*** Titled Tuesday Blitz"]
[Site "Chess.com"]
[Date "2020.04.21"]
[Round "1"]
[White "JakeCarlosBanawa"]
[Black "ElHelvetico"]
[Result "0-1"]
[WhiteElo "2319"]
[BlackElo "2652"]
[TimeControl "180+1"]
[EndTime "10:06:12 PDT"]
[Termination "ElHelvetico won by resignation"]

1. d4 {[%clk 0:03:00.9]} 1... f5 {[%clk 0:02:59.1]} 2. Bg5 {[%clk 0:03:00.2]}
2... g6 {[%clk 0:02:58.8]} 3. Nc3 {[%clk 0:02:58.2]} 3... Bg7 {[%clk 0:02:58]}
4. e3 {[%clk 0:02:57.3]} 4... h6 {[%clk 0:02:57.7]} 5. Bf4 {[%clk 0:02:52]} 5...
Nf6 {[%clk 0:02:57.5]} 6. h4 {[%clk 0:02:49]} 6... d6 {[%clk 0:02:57.5]} 7. Bc4
{[%clk 0:02:45.6]} 7... e6 {[%clk 0:02:57]} 8. Qf3 {[%clk 0:02:43.4]} 8... O-O
{[%clk 0:02:52.2]} 9. Qg3 {[%clk 0:02:36.9]} 9... Kh7 {[%clk 0:02:51.2]} 10. h5
{[%clk 0:02:13.5]} 10... g5 {[%clk 0:02:50]} 11. Bxg5 {[%clk 0:02:12.6]} 11...
hxg5 {[%clk 0:02:49.8]} 12. Qxg5 {[%clk 0:02:13.5]} 12... Qe8 {[%clk 0:02:36.4]}
13. f4 {[%clk 0:01:52]} 13... Ng4 {[%clk 0:02:19.6]} 14. Nf3 {[%clk 0:01:26.5]}
14... Bf6 {[%clk 0:02:08.6]} 15. Qg6+ {[%clk 0:01:19.9]} 15... Qxg6 {[%clk
0:02:06.1]} 16. hxg6+ {[%clk 0:01:20.8]} 16... Kxg6 {[%clk 0:02:06.9]} 17. Ke2
{[%clk 0:01:15.3]} 17... d5 {[%clk 0:01:59.6]} 18. Nb5 {[%clk 0:01:01.8]} 18...
dxc4 {[%clk 0:01:46.5]} 19. Nxc7 {[%clk 0:01:01.6]} 19... Na6 {[%clk 0:01:46.8]}
20. Nxa8 {[%clk 0:01:01.2]} 20... Bd7 {[%clk 0:01:47.4]} 21. Rh3 {[%clk
0:00:55.5]} 21... Rxa8 {[%clk 0:01:45.3]} 22. Rah1 {[%clk 0:00:55.3]} 22... Nb4
{[%clk 0:01:31.3]} 23. Kd2 {[%clk 0:00:49.8]} 23... Bc6 {[%clk 0:01:24.8]} 24.
Rh7 {[%clk 0:00:46.2]} 24... Nd5 {[%clk 0:01:18.4]} 25. Ne5+ {[%clk 0:00:41.3]}
25... Bxe5 {[%clk 0:01:17.8]} 26. dxe5 {[%clk 0:00:40.6]} 26... Ndxe3 {[%clk
0:01:11.5]} 27. Re7 {[%clk 0:00:39.8]} 27... Rd8+ {[%clk 0:01:06.2]} 28. Ke2
{[%clk 0:00:36.6]} 28... Nd5 {[%clk 0:01:02.5]} 29. Rxe6+ {[%clk 0:00:34.1]}
29... Kf7 {[%clk 0:01:02.4]} 30. Rd6 {[%clk 0:00:32]} 30... Rxd6 {[%clk
0:01:01.3]} 31. exd6 {[%clk 0:00:32.9]} 31... Nxf4+ {[%clk 0:01:01.8]} 32. Kd2
{[%clk 0:00:31.4]} 32... Ke6 {[%clk 0:01:01.4]} 33. Rf1 {[%clk 0:00:27.3]} 33...
Nxg2 {[%clk 0:01:00.1]} 34. Kc3 {[%clk 0:00:24.1]} 34... N2e3 {[%clk 0:00:57.3]}
35. Rf4 {[%clk 0:00:21.4]} 35... Nd5+ {[%clk 0:00:57.3]} 0-1

[Event "*** Titled Tuesday Blitz"]
[Site "Chess.com"]
[Date "2020.04.21"]
[Round "1"]
[White "SoltaniciR"]
[Black "HanSchut"]
[Result "1-0"]
[WhiteElo "2597"]
[BlackElo "2247"]
[TimeControl "180+1"]
[EndTime "10:06:13 PDT"]
[Termination "SoltaniciR won on time"]

1. e4 {[%clk 0:03:00.9]} 1... c5 {[%clk 0:02:59.7]} 2. Nf3 {[%clk 0:03:00.6]}
2... d6 {[%clk 0:02:59.9]} 3. Nc3 {[%clk 0:03:00.4]} 3... Nf6 {[%clk 0:02:59.5]}
4. d4 {[%clk 0:03:00.2]} 4... cxd4 {[%clk 0:03:00.4]} 5. Nxd4 {[%clk 0:03:00.6]}
5... a6 {[%clk 0:03:01]} 6. Be3 {[%clk 0:03:00.3]} 6... e5 {[%clk 0:03:00.9]} 7.
Nf3 {[%clk 0:03:00.2]} 7... Qc7 {[%clk 0:03:00.3]} 8. a4 {[%clk 0:02:59]} 8...
Be7 {[%clk 0:02:59.1]} 9. a5 {[%clk 0:02:57.3]} 9... Be6 {[%clk 0:02:59.5]} 10.
Be2 {[%clk 0:02:55.2]} 10... Nbd7 {[%clk 0:02:59]} 11. Nd5 {[%clk 0:02:53.5]}
11... Nxd5 {[%clk 0:02:46.8]} 12. exd5 {[%clk 0:02:54.4]} 12... Bf5 {[%clk
0:02:45.1]} 13. c4 {[%clk 0:02:54.7]} 13... O-O {[%clk 0:02:37.4]} 14. O-O
{[%clk 0:02:54.4]} 14... Bg6 {[%clk 0:02:29.9]} 15. Nd2 {[%clk 0:02:47.5]} 15...
f5 {[%clk 0:02:28.4]} 16. f3 {[%clk 0:02:47.2]} 16... Bf6 {[%clk 0:01:59.5]} 17.
Ra2 {[%clk 0:02:31.2]} 17... f4 {[%clk 0:01:31.5]} 18. Bf2 {[%clk 0:02:30.3]}
18... Nc5 {[%clk 0:01:31.9]} 19. b4 {[%clk 0:01:53.4]} 19... Nd3 {[%clk
0:01:31]} 20. Bxd3 {[%clk 0:01:53.4]} 20... Bxd3 {[%clk 0:01:31.5]} 21. Re1
{[%clk 0:01:53.9]} 21... Rac8 {[%clk 0:01:08.1]} 22. Ra3 {[%clk 0:01:53.3]}
22... Bf5 {[%clk 0:00:20.5]} 23. c5 {[%clk 0:01:53]} 23... Rfe8 {[%clk
0:00:16.3]} 24. Ne4 {[%clk 0:01:51.1]} 24... Bxe4 {[%clk 0:00:13.9]} 25. Rxe4
{[%clk 0:01:49.9]} 25... Be7 {[%clk 0:00:11.7]} 26. Rc4 {[%clk 0:01:38.7]} 26...
Qd7 {[%clk 0:00:09.9]} 27. c6 {[%clk 0:01:32.2]} 27... bxc6 {[%clk 0:00:07.4]}
28. dxc6 {[%clk 0:01:33.1]} 28... Qe6 {[%clk 0:00:05.7]} 29. Qd3 {[%clk
0:01:12]} 29... d5 {[%clk 0:00:05.4]} 30. Rc1 {[%clk 0:01:09.2]} 30... Bxb4
{[%clk 0:00:04.1]} 31. Ra4 {[%clk 0:01:05.9]} 1-0

[Event "*** Titled Tuesday Blitz"]
[Site "Chess.com"]
[Date "2020.04.21"]
[Round "1"]
[White "HomayoonTofighi"]
[Black "Fh2411"]
[Result "1-0"]
[WhiteElo "2911"]
[BlackElo "2458"]
[TimeControl "180+1"]
[EndTime "10:06:15 PDT"]
[Termination "HomayoonTofighi won by resignation"]

1. e4 {[%clk 0:03:00.7]} 1... e5 {[%clk 0:02:56.9]} 2. Nf3 {[%clk 0:03:00.4]}
2... Nf6 {[%clk 0:02:56.1]} 3. Nxe5 {[%clk 0:03:00.4]} 3... d6 {[%clk
0:02:56.4]} 4. Nxf7 {[%clk 0:02:58.1]} 4... Kxf7 {[%clk 0:02:54.4]} 5. d4 {[%clk
0:02:58.6]} 5... Be7 {[%clk 0:02:31]} 6. Nc3 {[%clk 0:02:55.6]} 6... Re8 {[%clk
0:02:29.1]} 7. Bc4+ {[%clk 0:02:52.4]} 7... Be6 {[%clk 0:02:18.7]} 8. Bxe6+
{[%clk 0:02:49.1]} 8... Kxe6 {[%clk 0:02:19.6]} 9. O-O {[%clk 0:02:47.1]} 9...
Kf7 {[%clk 0:02:17.5]} 10. f4 {[%clk 0:02:43.2]} 10... Kg8 {[%clk 0:02:11.3]}
11. Qf3 {[%clk 0:02:36.5]} 11... Nc6 {[%clk 0:02:00.8]} 12. Be3 {[%clk
0:02:32.2]} 12... Bf8 {[%clk 0:01:50]} 13. e5 {[%clk 0:02:30]} 13... Nd7 {[%clk
0:01:43.7]} 14. Rae1 {[%clk 0:02:21.8]} 14... Kh8 {[%clk 0:01:36.3]} 15. d5
{[%clk 0:02:12.4]} 15... Ne7 {[%clk 0:01:33.9]} 16. e6 {[%clk 0:02:09.7]} 16...
Nf6 {[%clk 0:01:32.4]} 17. g4 {[%clk 0:02:05]} 17... c6 {[%clk 0:01:29.9]} 18.
dxc6 {[%clk 0:02:03]} 18... bxc6 {[%clk 0:01:29.7]} 19. Bd4 {[%clk 0:01:52.9]}
19... Nfd5 {[%clk 0:01:22.5]} 20. f5 {[%clk 0:01:51.1]} 20... Nxc3 {[%clk
0:01:16.7]} 21. Bxc3 {[%clk 0:01:41.2]} 21... Nd5 {[%clk 0:01:14.1]} 22. Bd4
{[%clk 0:01:39.1]} 22... Be7 {[%clk 0:00:53.4]} 23. c4 {[%clk 0:01:36.9]} 23...
Nb4 {[%clk 0:00:53.2]} 24. Qc3 {[%clk 0:01:31.7]} 24... Bf6 {[%clk 0:00:44.3]}
25. Bxf6 {[%clk 0:01:29]} 25... Qxf6 {[%clk 0:00:45.2]} 26. Qxb4 {[%clk
0:01:27.9]} 26... Qd4+ {[%clk 0:00:45.7]} 27. Rf2 {[%clk 0:01:23.5]} 27... Qxg4+
{[%clk 0:00:43.6]} 28. Kh1 {[%clk 0:01:21.4]} 28... Rf8 {[%clk 0:00:31]} 29. e7
{[%clk 0:01:10.6]} 29... Rfe8 {[%clk 0:00:23.1]} 30. Qc3 {[%clk 0:01:10.3]}
30... d5 {[%clk 0:00:20.3]} 31. f6 {[%clk 0:01:09]} 31... d4 {[%clk 0:00:19.9]}
32. f7 {[%clk 0:01:09.6]} 1-0

[Event "*** Titled Tuesday Blitz"]
[Site "Chess.com"]
[Date "2020.04.21"]
[Round "1"]
[White "Toro1234"]
[Black "LilRag"]
[Result "1/2-1/2"]
[WhiteElo "2651"]
[BlackElo "2341"]
[TimeControl "180+1"]
[EndTime "10:06:15 PDT"]
[Termination "Game drawn - insufficient material"]

1. d4 {[%clk 0:02:59.5]} 1... Nf6 {[%clk 0:02:59.3]} 2. Bg5 {[%clk 0:02:58.6]}
2... e6 {[%clk 0:02:59.1]} 3. Nd2 {[%clk 0:02:56.3]} 3... d5 {[%clk 0:02:57.7]}
4. e3 {[%clk 0:02:55.7]} 4... Be7 {[%clk 0:02:57.2]} 5. Bd3 {[%clk 0:02:52.9]}
5... c5 {[%clk 0:02:57]} 6. c3 {[%clk 0:02:52.9]} 6... Nc6 {[%clk 0:02:57.3]} 7.
f4 {[%clk 0:02:52.6]} 7... h6 {[%clk 0:02:54.1]} 8. Bxf6 {[%clk 0:02:52]} 8...
Bxf6 {[%clk 0:02:53.3]} 9. Ngf3 {[%clk 0:02:52]} 9... cxd4 {[%clk 0:02:51.5]}
10. exd4 {[%clk 0:02:51.6]} 10... O-O {[%clk 0:02:51.8]} 11. O-O {[%clk
0:02:51.5]} 11... Bd7 {[%clk 0:02:50.5]} 12. Ne5 {[%clk 0:02:51.3]} 12... Rc8
{[%clk 0:02:49.2]} 13. Qe2 {[%clk 0:02:50.7]} 13... Qc7 {[%clk 0:02:38.6]} 14.
Kh1 {[%clk 0:02:44.3]} 14... Ne7 {[%clk 0:02:20.4]} 15. Rae1 {[%clk 0:02:39.2]}
15... a6 {[%clk 0:02:14.6]} 16. Nxd7 {[%clk 0:02:37.8]} 16... Qxd7 {[%clk
0:02:14.6]} 17. Nf3 {[%clk 0:02:37]} 17... Nf5 {[%clk 0:02:04.1]} 18. Bxf5
{[%clk 0:02:34.4]} 18... exf5 {[%clk 0:02:03.8]} 19. Ne5 {[%clk 0:02:34.4]}
19... Qa4 {[%clk 0:02:01.6]} 20. a3 {[%clk 0:02:32.2]} 20... Rfe8 {[%clk
0:01:46.1]} 21. Qd3 {[%clk 0:02:30.1]} 21... g6 {[%clk 0:01:42]} 22. Rf2 {[%clk
0:02:29.7]} 22... b5 {[%clk 0:01:39.2]} 23. Rfe2 {[%clk 0:02:29.4]} 23... Bxe5
{[%clk 0:01:34.7]} 24. Rxe5 {[%clk 0:02:27.1]} 24... Rxe5 {[%clk 0:01:34.2]} 25.
Rxe5 {[%clk 0:02:27.6]} 25... Qb3 {[%clk 0:01:32.9]} 26. Qd2 {[%clk 0:02:26.7]}
26... a5 {[%clk 0:01:26.3]} 27. Re3 {[%clk 0:02:24.8]} 27... Qa2 {[%clk
0:01:20.3]} 28. h3 {[%clk 0:02:24.6]} 28... Qb1+ {[%clk 0:01:16.6]} 29. Kh2
{[%clk 0:02:24.7]} 29... b4 {[%clk 0:01:03.2]} 30. axb4 {[%clk 0:02:16.1]} 30...
axb4 {[%clk 0:01:03.3]} 31. Qe2 {[%clk 0:02:15.6]} 31... bxc3 {[%clk 0:00:59.6]}
32. Re8+ {[%clk 0:02:10.3]} 32... Rxe8 {[%clk 0:00:56.1]} 33. Qxe8+ {[%clk
0:02:11.2]} 33... Kg7 {[%clk 0:00:56]} 34. Qe5+ {[%clk 0:02:10.1]} 34... Kg8
{[%clk 0:00:56.1]} 35. bxc3 {[%clk 0:02:09.6]} 35... Qe4 {[%clk 0:00:51.1]} 36.
Kg1 {[%clk 0:01:57.4]} 36... Qb1+ {[%clk 0:00:44.7]} 37. Kf2 {[%clk 0:01:57.2]}
37... Qc2+ {[%clk 0:00:44.1]} 38. Kf3 {[%clk 0:01:56.4]} 38... Qxc3+ {[%clk
0:00:44]} 39. Kf2 {[%clk 0:01:55.4]} 39... Qd2+ {[%clk 0:00:43.6]} 40. Kg1
{[%clk 0:01:54.9]} 40... Qc1+ {[%clk 0:00:42.1]} 41. Kf2 {[%clk 0:01:54.7]}
41... Qc2+ {[%clk 0:00:41.4]} 42. Kg3 {[%clk 0:01:53.7]} 42... Qe4 {[%clk
0:00:41.9]} 43. Kf2 {[%clk 0:01:51.6]} 43... g5 {[%clk 0:00:40.2]} 44. fxg5
{[%clk 0:01:46.9]} 44... Qxe5 {[%clk 0:00:39.5]} 45. dxe5 {[%clk 0:01:46.5]}
45... hxg5 {[%clk 0:00:40]} 46. Ke3 {[%clk 0:01:47.1]} 46... Kf8 {[%clk
0:00:27.2]} 47. Kd4 {[%clk 0:01:46.4]} 47... Ke7 {[%clk 0:00:27.7]} 48. Kxd5
{[%clk 0:01:46.3]} 48... f4 {[%clk 0:00:25.3]} 49. Kd4 {[%clk 0:01:43.4]} 49...
Ke6 {[%clk 0:00:25]} 50. Ke4 {[%clk 0:01:43.3]} 50... f6 {[%clk 0:00:24.4]} 51.
exf6 {[%clk 0:01:43.2]} 51... Kxf6 {[%clk 0:00:24.9]} 52. Kf3 {[%clk 0:01:40.4]}
52... Kf5 {[%clk 0:00:24.6]} 53. g3 {[%clk 0:01:40.5]} 53... fxg3 {[%clk
0:00:24.4]} 54. Kxg3 {[%clk 0:01:40.4]} 54... Kg6 {[%clk 0:00:25]} 55. h4 {[%clk
0:01:40.6]} 55... gxh4+ {[%clk 0:00:25.2]} 56. Kxh4 {[%clk 0:01:41.5]} 1/2-1/2